[Event "Live Chess"]
[Site "Chess.com"]
[Date "2024.06.02"]
[Round "-"]
[White "CarmelJane"]
[Black "chessgoatpawel"]
[Result "0-1"]
[WhiteElo "2041"]
[BlackElo "2084"]
[TimeControl "300"]
[EndTime "1:56:11 PDT"]
[Termination "chessgoatpawel won by resignation"]

1. e4 {[%clk 0:04:57.6]} 1... c6 {[%clk 0:04:48.1]} 2. d4 {[%clk 0:04:55]} 2...
d5 {[%clk 0:04:48]} 3. e5 {[%clk 0:04:54.2]} 3... Bf5 {[%clk 0:04:46.5]} 4. Nf3
{[%clk 0:04:52.9]} 4... e6 {[%clk 0:04:45.6]} 5. Be2 {[%clk 0:04:51.9]} 5... Ne7
{[%clk 0:04:44]} 6. O-O {[%clk 0:04:50.9]} 6... Bg6 {[%clk 0:04:43]} 7. Nbd2
{[%clk 0:04:45.2]} 7... c5 {[%clk 0:04:40.5]} 8. dxc5 {[%clk 0:04:40.3]} 8...
Nd7 {[%clk 0:04:38.3]} 9. b4 {[%clk 0:04:38.1]} 9... a5 {[%clk 0:04:36.3]} 10.
c3 {[%clk 0:04:35.1]} 10... axb4 {[%clk 0:04:24.2]} 11. cxb4 {[%clk 0:04:33.6]}
11... Nc6 {[%clk 0:04:23.7]} 12. Bb2 {[%clk 0:04:32.1]} 12... Nxb4 {[%clk
0:04:22.1]} 13. Nb3 {[%clk 0:04:25]} 13... Nxc5 {[%clk 0:04:17.8]} 14. Nxc5
{[%clk 0:04:18.6]} 14... Bxc5 {[%clk 0:04:17.7]} 15. Bb5+ {[%clk 0:04:16.8]}
15... Nc6 {[%clk 0:04:16]} 16. Rc1 {[%clk 0:04:09.5]} 16... Qb6 {[%clk
0:04:07.7]} 17. a4 {[%clk 0:03:58.2]} 17... O-O {[%clk 0:04:01]} 18. h4 {[%clk
0:03:12.1]} 18... Na7 {[%clk 0:03:46.1]} 19. Bd3 {[%clk 0:03:07]} 19... Bxd3
{[%clk 0:03:34.2]} 20. Qxd3 {[%clk 0:03:05.4]} 20... Nc6 {[%clk 0:03:21.4]} 21.
Ng5 {[%clk 0:02:54.5]} 21... g6 {[%clk 0:03:19.1]} 22. h5 {[%clk 0:02:40.8]}
22... Be7 {[%clk 0:03:13.4]} 23. Rxc6 {[%clk 0:02:16.2]} 23... bxc6 {[%clk
0:03:05.5]} 24. Bc1 {[%clk 0:02:12.9]} 24... Qd8 {[%clk 0:02:49.1]} 25. hxg6
{[%clk 0:01:53]} 25... Bxg5 {[%clk 0:02:35.9]} 26. gxh7+ {[%clk 0:01:50.9]}
26... Kh8 {[%clk 0:02:34.1]} 27. f4 {[%clk 0:01:37.4]} 27... Bh6 {[%clk
0:02:25.6]} 28. Qh3 {[%clk 0:01:17.1]} 28... Bg7 {[%clk 0:02:12]} 29. f5 {[%clk
0:00:58.1]} 29... Bxe5 {[%clk 0:02:03.6]} 30. fxe6 {[%clk 0:00:54.5]} 30... fxe6
{[%clk 0:01:59.4]} 31. Re1 {[%clk 0:00:51.1]} 31... Bd4+ {[%clk 0:01:54.5]} 32.
Kh1 {[%clk 0:00:43.1]} 32... Qe7 {[%clk 0:01:50.6]} 33. Ba3 {[%clk 0:00:31.5]}
33... Qxh7 {[%clk 0:01:46.5]} 34. Qxh7+ {[%clk 0:00:26.8]} 34... Kxh7 {[%clk
0:01:46.4]} 35. Rxe6 {[%clk 0:00:25.3]} 35... Rf1+ {[%clk 0:01:41.2]} 36. Kh2
{[%clk 0:00:23.3]} 36... Rxa4 {[%clk 0:01:35.6]} 0-1

[Event "Live Chess"]
[Site "Chess.com"]
[Date "2024.06.02"]
[Round "-"]
[White "yarek"]
[Black "Vladyslav2008"]
[Result "0-1"]
[WhiteElo "1731"]
[BlackElo "2257"]
[TimeControl "300"]
[EndTime "1:56:22 PDT"]
[Termination "Vladyslav2008 won by resignation"]

1. e4 {[%clk 0:04:55.6]} 1... c5 {[%clk 0:04:58.3]} 2. d4 {[%clk 0:04:53.9]}
2... cxd4 {[%clk 0:04:57.2]} 3. c3 {[%clk 0:04:53.5]} 3... Nc6 {[%clk
0:04:54.4]} 4. cxd4 {[%clk 0:04:51]} 4... d5 {[%clk 0:04:53.3]} 5. e5 {[%clk
0:04:49.1]} 5... Bf5 {[%clk 0:04:51.4]} 6. a3 {[%clk 0:04:42.3]} 6... e6 {[%clk
0:04:49.7]} 7. Nc3 {[%clk 0:04:39.4]} 7... a6 {[%clk 0:04:48.4]} 8. Bd3 {[%clk
0:04:35.2]} 8... Nge7 {[%clk 0:04:46.7]} 9. Nf3 {[%clk 0:04:32.6]} 9... Qb6
{[%clk 0:04:41.8]} 10. Na4 {[%clk 0:03:58.3]} 10... Qa7 {[%clk 0:04:26]} 11. Be3
{[%clk 0:03:45.3]} 11... Bxd3 {[%clk 0:04:22.1]} 12. Qxd3 {[%clk 0:03:42.9]}
12... Nf5 {[%clk 0:04:20.9]} 13. O-O {[%clk 0:03:29.6]} 13... b5 {[%clk
0:04:17.7]} 14. Nc5 {[%clk 0:03:20]} 14... Bxc5 {[%clk 0:04:16.3]} 15. dxc5
{[%clk 0:03:19.9]} 15... O-O {[%clk 0:04:13.8]} 16. b4 {[%clk 0:03:15.6]} 16...
Qc7 {[%clk 0:04:08.4]} 17. Nd4 {[%clk 0:03:13.7]} 17... Nxe5 {[%clk 0:04:06.2]}
18. Qe2 {[%clk 0:03:00.1]} 18... Nc4 {[%clk 0:03:59.5]} 19. Bg5 {[%clk
0:02:34.8]} 19... Nxd4 {[%clk 0:03:52.4]} 0-1

[Event "Live Chess"]
[Site "Chess.com"]
[Date "2024.06.02"]
[Round "-"]
[White "Eva3337"]
[Black "nitrofish07"]
[Result "0-1"]
[WhiteElo "1181"]
[BlackElo "2080"]
[TimeControl "300"]
[EndTime "1:56:47 PDT"]
[Termination "nitrofish07 won by resignation"]

1. e4 {[%clk 0:04:56.4]} 1... c5 {[%clk 0:04:59.3]} 2. c3 {[%clk 0:04:54.2]}
2... d5 {[%clk 0:04:58.7]} 3. e5 {[%clk 0:04:52.8]} 3... Nc6 {[%clk 0:04:57]} 4.
d4 {[%clk 0:04:51.7]} 4... Bf5 {[%clk 0:04:55.3]} 5. Bd3 {[%clk 0:04:41.9]} 5...
Bxd3 {[%clk 0:04:53.6]} 6. Qxd3 {[%clk 0:04:40.7]} 6... e6 {[%clk 0:04:53.5]} 7.
Nf3 {[%clk 0:04:39.1]} 7... Qb6 {[%clk 0:04:51.6]} 8. b3 {[%clk 0:04:30]} 8...
Nge7 {[%clk 0:04:48.8]} 9. O-O {[%clk 0:04:28.3]} 9... Ng6 {[%clk 0:04:46.6]}
10. Re1 {[%clk 0:04:22]} 10... Be7 {[%clk 0:04:39.7]} 11. Na3 {[%clk 0:04:18]}
11... O-O {[%clk 0:04:37.3]} 12. Nb5 {[%clk 0:04:16]} 12... a6 {[%clk
0:04:35.5]} 13. Nd6 {[%clk 0:04:14.5]} 13... Bxd6 {[%clk 0:04:34.1]} 14. exd6
{[%clk 0:04:13.2]} 14... cxd4 {[%clk 0:04:33.1]} 15. cxd4 {[%clk 0:04:08.4]}
15... Qd8 {[%clk 0:04:29.6]} 16. Ne5 {[%clk 0:03:48.7]} 16... Qxd6 {[%clk
0:04:23.5]} 17. Nxc6 {[%clk 0:03:39]} 17... Qxc6 {[%clk 0:04:21]} 18. Bb2 {[%clk
0:03:30.6]} 18... Rac8 {[%clk 0:04:18]} 19. Rac1 {[%clk 0:03:26.8]} 19... Qd7
{[%clk 0:04:16.6]} 20. Rc5 {[%clk 0:03:22.1]} 20... b6 {[%clk 0:04:01.1]} 21.
Rc3 {[%clk 0:03:18.2]} 21... Rxc3 {[%clk 0:03:53.8]} 22. Qxc3 {[%clk 0:03:12]}
22... Rc8 {[%clk 0:03:52.3]} 23. Qd3 {[%clk 0:03:10.6]} 23... b5 {[%clk
0:03:44.7]} 24. g3 {[%clk 0:02:56.6]} 24... Rc6 {[%clk 0:03:36.5]} 25. h4 {[%clk
0:02:54.7]} 25... Qc7 {[%clk 0:03:28.3]} 26. Qd2 {[%clk 0:02:44.7]} 26... Rc2
{[%clk 0:03:26.1]} 27. Qa5 {[%clk 0:02:18.8]} 27... Qxa5 {[%clk 0:03:23.5]} 0-1

[Event "Live Chess"]
[Site "Chess.com"]
[Date "2024.06.02"]
[Round "-"]
[White "ProfessorChess101"]
[Black "Ferrarifan27"]
[Result "1-0"]
[WhiteElo "2728"]
[BlackElo "2138"]
[TimeControl "300"]
[EndTime "1:56:50 PDT"]
[Termination "ProfessorChess101 won by checkmate"]

1. d4 {[%clk 0:04:58.4]} 1... Nf6 {[%clk 0:04:58.6]} 2. c4 {[%clk 0:04:57.4]}
2... e6 {[%clk 0:04:57.3]} 3. Nc3 {[%clk 0:04:56.4]} 3... Bb4 {[%clk 0:04:55.9]}
4. Nf3 {[%clk 0:04:55.1]} 4... b6 {[%clk 0:04:53.7]} 5. e3 {[%clk 0:04:52.6]}
5... Bb7 {[%clk 0:04:52.4]} 6. Bd2 {[%clk 0:04:52.2]} 6... O-O {[%clk
0:04:50.6]} 7. a3 {[%clk 0:04:47.7]} 7... Bxc3 {[%clk 0:04:48.6]} 8. Bxc3 {[%clk
0:04:47.6]} 8... d6 {[%clk 0:04:47.9]} 9. Bd3 {[%clk 0:04:45.3]} 9... Ne4 {[%clk
0:04:44.3]} 10. Nd2 {[%clk 0:04:40.1]} 10... Nxc3 {[%clk 0:04:43.1]} 11. bxc3
{[%clk 0:04:39.4]} 11... e5 {[%clk 0:04:39.4]} 12. e4 {[%clk 0:04:31.9]} 12...
Nd7 {[%clk 0:04:34.7]} 13. O-O {[%clk 0:04:30.5]} 13... Qf6 {[%clk 0:04:31.9]}
14. Nf3 {[%clk 0:04:22]} 14... a5 {[%clk 0:04:28.1]} 15. Bc2 {[%clk 0:04:12.4]}
15... Rfe8 {[%clk 0:04:23.4]} 16. Re1 {[%clk 0:04:07.2]} 16... Rad8 {[%clk
0:04:21.3]} 17. Qd2 {[%clk 0:03:56.3]} 17... Ba6 {[%clk 0:04:19.3]} 18. Bb3
{[%clk 0:03:32.6]} 18... Nf8 {[%clk 0:03:59.4]} 19. Rad1 {[%clk 0:03:23.3]}
19... Ng6 {[%clk 0:03:51.1]} 20. Qe3 {[%clk 0:03:15.4]} 20... Nf4 {[%clk
0:03:45.9]} 21. c5 {[%clk 0:03:03]} 21... dxc5 {[%clk 0:03:37.5]} 22. dxe5
{[%clk 0:02:56.9]} 22... Qh6 {[%clk 0:03:13.9]} 23. h4 {[%clk 0:02:30.4]} 23...
Rxd1 {[%clk 0:03:02.4]} 24. Rxd1 {[%clk 0:02:17.6]} 24... Ne2+ {[%clk
0:03:00.2]} 25. Kh2 {[%clk 0:02:16.2]} 25... Qxe3 {[%clk 0:02:59]} 26. fxe3
{[%clk 0:02:16.1]} 26... Nxc3 {[%clk 0:02:56.4]} 27. Rd7 {[%clk 0:02:12.3]}
27... Nxe4 {[%clk 0:02:50.4]} 28. Bxf7+ {[%clk 0:02:10.4]} 28... Kf8 {[%clk
0:02:37.4]} 29. Bxe8 {[%clk 0:02:09.5]} 29... Kxe8 {[%clk 0:02:37.3]} 30. Rxc7
{[%clk 0:02:08.1]} 30... Kf8 {[%clk 0:02:34.8]} 31. e6 {[%clk 0:02:05.2]} 31...
Bc4 {[%clk 0:02:31.3]} 32. e7+ {[%clk 0:01:46.1]} 32... Ke8 {[%clk 0:02:28.1]}
33. Ne5 {[%clk 0:01:40.8]} 33... Be6 {[%clk 0:02:26.1]} 34. Rb7 {[%clk
0:01:33.6]} 34... c4 {[%clk 0:02:22.7]} 35. Nc6 {[%clk 0:01:20.9]} 35... Nd6
{[%clk 0:02:20.6]} 36. Rb8+ {[%clk 0:01:17.1]} 36... Kf7 {[%clk 0:02:19]} 37.
Rf8+ {[%clk 0:01:14.7]} 37... Kg6 {[%clk 0:02:15.2]} 38. Rd8 {[%clk 0:01:13.6]}
38... c3 {[%clk 0:02:02.1]} 39. Rxd6 {[%clk 0:01:11.7]} 39... c2 {[%clk
0:02:01]} 40. e8=Q+ {[%clk 0:01:10.6]} 40... Kh6 {[%clk 0:01:58.5]} 41. Rxe6+
{[%clk 0:01:07.8]} 41... g6 {[%clk 0:01:57.5]} 42. Ne5 {[%clk 0:01:03.7]} 42...
c1=Q {[%clk 0:01:54.9]} 43. Rxg6+ {[%clk 0:01:03.3]} 43... Kh5 {[%clk
0:01:48.8]} 44. Rg5+ {[%clk 0:01:02.5]} 44... Kh6 {[%clk 0:01:47.7]} 45. Qh5#
{[%clk 0:01:02.4]} 1-0

[Event "Live Chess"]
[Site "Chess.com"]
[Date "2024.06.02"]
[Round "-"]
[White "RockTroll"]
[Black "Crowded_House"]
[Result "1-0"]
[WhiteElo "2181"]
[BlackElo "1682"]
[TimeControl "300"]
[EndTime "1:56:50 PDT"]
[Termination "RockTroll won by resignation"]

1. Nf3 {[%clk 0:04:57.7]} 1... e6 {[%clk 0:04:59.1]} 2. g3 {[%clk 0:04:56.5]}
2... d5 {[%clk 0:04:58.5]} 3. Bg2 {[%clk 0:04:56.2]} 3... c5 {[%clk 0:04:56]} 4.
O-O {[%clk 0:04:55.4]} 4... Nc6 {[%clk 0:04:54.9]} 5. d3 {[%clk 0:04:55.1]} 5...
Nf6 {[%clk 0:04:52.6]} 6. Nbd2 {[%clk 0:04:54.6]} 6... Bd6 {[%clk 0:04:50.9]} 7.
e4 {[%clk 0:04:54.1]} 7... dxe4 {[%clk 0:04:49]} 8. dxe4 {[%clk 0:04:54]} 8...
Ne5 {[%clk 0:04:43.5]} 9. Nxe5 {[%clk 0:04:51.1]} 9... Bxe5 {[%clk 0:04:42.7]}
10. c3 {[%clk 0:04:50.8]} 10... O-O {[%clk 0:04:35.9]} 11. f4 {[%clk 0:04:50]}
11... Bc7 {[%clk 0:04:33.2]} 12. e5 {[%clk 0:04:49.4]} 12... Nd5 {[%clk
0:04:30.1]} 13. Ne4 {[%clk 0:04:46.6]} 13... b6 {[%clk 0:04:23]} 14. c4 {[%clk
0:04:42.8]} 14... Ne7 {[%clk 0:04:13.8]} 15. Qxd8 {[%clk 0:04:41.6]} 15... Rxd8
{[%clk 0:04:12.4]} 16. Nf6+ {[%clk 0:04:40.7]} 16... gxf6 {[%clk 0:04:10.5]} 17.
exf6 {[%clk 0:04:38.5]} 17... Rb8 {[%clk 0:04:01.6]} 18. fxe7 {[%clk 0:04:36.9]}
18... Re8 {[%clk 0:04:00.4]} 19. f5 {[%clk 0:04:34.6]} 19... Rxe7 {[%clk
0:03:54.9]} 20. f6 {[%clk 0:04:31.4]} 20... Rd7 {[%clk 0:03:48.8]} 21. Bh6
{[%clk 0:04:28.8]} 21... Bb7 {[%clk 0:03:35.1]} 22. Bxb7 {[%clk 0:04:23.6]}
22... Rxb7 {[%clk 0:03:33.2]} 23. Rae1 {[%clk 0:04:23.4]} 23... Rd4 {[%clk
0:03:15.9]} 24. Rf5 {[%clk 0:04:21]} 24... Rg4 {[%clk 0:03:07.7]} 25. Rd5 {[%clk
0:03:57.5]} 25... Rb8 {[%clk 0:02:46.7]} 26. Rd7 {[%clk 0:03:55.6]} 26... Rc8
{[%clk 0:02:41.7]} 27. Red1 {[%clk 0:03:52.3]} 27... Rg6 {[%clk 0:01:53]} 28.
Rxc7 {[%clk 0:03:50.8]} 28... Rf8 {[%clk 0:01:48.4]} 29. Bxf8 {[%clk 0:03:48.1]}
29... Rxf6 {[%clk 0:01:43.2]} 30. Rc8 {[%clk 0:03:46.8]} 30... h6 {[%clk
0:01:37.4]} 31. Be7+ {[%clk 0:03:46.1]} 31... Kg7 {[%clk 0:01:36.5]} 32. Bxf6+
{[%clk 0:03:45.8]} 32... Kxf6 {[%clk 0:01:36.2]} 33. Rd7 {[%clk 0:03:45.1]} 1-0

[Event "Live Chess"]
[Site "Chess.com"]
[Date "2024.06.02"]
[Round "-"]
[White "Tunyk_Vladyslav"]
[Black "JohanKjeldahl"]
[Result "1-0"]
[WhiteElo "2402"]
[BlackElo "1816"]
[TimeControl "300"]
[EndTime "1:56:59 PDT"]
[Termination "Tunyk_Vladyslav won on time"]

1. e4 {[%clk 0:04:57.7]} 1... c5 {[%clk 0:04:58.5]} 2. Nf3 {[%clk 0:04:56.5]}
2... e6 {[%clk 0:04:57.5]} 3. c3 {[%clk 0:04:55.8]} 3... d5 {[%clk 0:04:53.2]}
4. e5 {[%clk 0:04:55.2]} 4... Nc6 {[%clk 0:04:51]} 5. d4 {[%clk 0:04:53.9]} 5...
cxd4 {[%clk 0:04:46.6]} 6. cxd4 {[%clk 0:04:53.8]} 6... Nge7 {[%clk 0:04:43.5]}
7. a3 {[%clk 0:04:51.2]} 7... Ng6 {[%clk 0:04:42.1]} 8. b4 {[%clk 0:04:49.4]}
8... a6 {[%clk 0:04:39.6]} 9. Nc3 {[%clk 0:04:48.2]} 9... Be7 {[%clk 0:04:37.1]}
10. Bd3 {[%clk 0:04:46.2]} 10... O-O {[%clk 0:04:34.4]} 11. O-O {[%clk
0:04:45.7]} 11... f5 {[%clk 0:04:11.3]} 12. g3 {[%clk 0:04:27.7]} 12... Bd7
{[%clk 0:04:04.6]} 13. h4 {[%clk 0:04:25.5]} 13... Nh8 {[%clk 0:03:59.7]} 14.
Be3 {[%clk 0:04:18.9]} 14... Rc8 {[%clk 0:03:58]} 15. Rc1 {[%clk 0:04:16.8]}
15... Qe8 {[%clk 0:03:51.6]} 16. Na4 {[%clk 0:03:43.1]} 16... Qh5 {[%clk
0:03:41.9]} 17. Nb6 {[%clk 0:03:36.9]} 17... Rcd8 {[%clk 0:03:40.2]} 18. Nxd7
{[%clk 0:03:36.3]} 18... Rxd7 {[%clk 0:03:36.8]} 19. Bxa6 {[%clk 0:03:35.9]}
19... Nxb4 {[%clk 0:03:21.8]} 20. Bb5 {[%clk 0:03:27.4]} 20... Nc6 {[%clk
0:03:18.4]} 21. Bxc6 {[%clk 0:03:26.5]} 21... bxc6 {[%clk 0:03:17]} 22. Rxc6
{[%clk 0:03:26.4]} 22... Qg6 {[%clk 0:03:12.2]} 23. Qc2 {[%clk 0:02:49.2]} 23...
Nf7 {[%clk 0:03:07]} 24. Rc7 {[%clk 0:02:39.3]} 24... Rxc7 {[%clk 0:02:59.7]}
25. Qxc7 {[%clk 0:02:39.2]} 25... Bxa3 {[%clk 0:02:57.2]} 26. Ra1 {[%clk
0:02:28.9]} 26... Bb2 {[%clk 0:02:51.7]} 27. Ra2 {[%clk 0:02:11.8]} 27... f4
{[%clk 0:02:50.6]} 28. Bxf4 {[%clk 0:02:05]} 28... Qb1+ {[%clk 0:02:48.6]} 29.
Kg2 {[%clk 0:02:00.5]} 29... Qxa2 {[%clk 0:02:46.8]} 30. Qc6 {[%clk 0:01:44.6]}
30... Nd8 {[%clk 0:02:41.3]} 31. Qd7 {[%clk 0:01:40.3]} 31... Qa6 {[%clk
0:02:07.2]} 32. h5 {[%clk 0:01:26]} 32... Qc6 {[%clk 0:01:49.5]} 33. Qe7 {[%clk
0:01:21]} 33... Qe8 {[%clk 0:01:42.2]} 34. Qh4 {[%clk 0:00:56.7]} 34... Ba3
{[%clk 0:01:38.1]} 35. h6 {[%clk 0:00:55.4]} 35... Qe7 {[%clk 0:01:34.2]} 36.
Qg4 {[%clk 0:00:44.7]} 36... g6 {[%clk 0:01:24]} 37. Bg5 {[%clk 0:00:43.6]}
37... Qf7 {[%clk 0:01:21.2]} 38. Bf6 {[%clk 0:00:42.9]} 38... Be7 {[%clk
0:01:18.3]} 39. Ng5 {[%clk 0:00:40.3]} 39... Qe8 {[%clk 0:01:16.4]} 40. Bg7
{[%clk 0:00:38]} 40... Bxg5 {[%clk 0:01:11.8]} 41. Bxf8 {[%clk 0:00:36.7]} 41...
Qxf8 {[%clk 0:01:02.7]} 42. Qxg5 {[%clk 0:00:35.9]} 42... Nf7 {[%clk 0:01:00.1]}
43. Qf6 {[%clk 0:00:33.3]} 43... Nxh6 {[%clk 0:00:54.1]} 44. Qxe6+ {[%clk
0:00:32.5]} 44... Qf7 {[%clk 0:00:53]} 45. Qxf7+ {[%clk 0:00:27]} 45... Kxf7
{[%clk 0:00:51.6]} 46. f4 {[%clk 0:00:26.9]} 46... Ke6 {[%clk 0:00:50.3]} 47.
Kf3 {[%clk 0:00:25.7]} 47... Kf5 {[%clk 0:00:48.1]} 48. Ke3 {[%clk 0:00:20.4]}
48... Ng4+ {[%clk 0:00:46.7]} 49. Kf3 {[%clk 0:00:19.7]} 49... h5 {[%clk
0:00:41.3]} 50. Kg2 {[%clk 0:00:19.3]} 50... Ne3+ {[%clk 0:00:38.4]} 51. Kh3
{[%clk 0:00:18.4]} 51... Nc2 {[%clk 0:00:36.7]} 52. Kh4 {[%clk 0:00:17.5]} 52...
Nxd4 {[%clk 0:00:35.5]} 53. Kh3 {[%clk 0:00:15.3]} 53... Nf3 {[%clk 0:00:34.5]}
54. Kg2 {[%clk 0:00:14.8]} 54... Nd2 {[%clk 0:00:31.9]} 55. Kf2 {[%clk 0:00:14]}
55... Nc4 {[%clk 0:00:29.7]} 56. Ke2 {[%clk 0:00:13.2]} 56... h4 {[%clk
0:00:24.1]} 57. gxh4 {[%clk 0:00:09]} 57... Nb6 {[%clk 0:00:16.2]} 58. e6 {[%clk
0:00:08.3]} 58... Nc8 {[%clk 0:00:13.5]} 59. Kf3 {[%clk 0:00:08.2]} 59... d4
{[%clk 0:00:11.4]} 60. Ke2 {[%clk 0:00:07.2]} 60... Kxf4 {[%clk 0:00:09.6]} 61.
Kd3 {[%clk 0:00:07.1]} 61... Ke5 {[%clk 0:00:08.8]} 62. e7 {[%clk 0:00:06.4]}
62... Nxe7 {[%clk 0:00:06.8]} 63. Kd2 {[%clk 0:00:06.3]} 63... Nd5 {[%clk
0:00:05.9]} 64. Ke2 {[%clk 0:00:06.2]} 64... Ke4 {[%clk 0:00:04.9]} 65. Kf2
{[%clk 0:00:05.6]} 65... d3 {[%clk 0:00:04.1]} 66. Kg3 {[%clk 0:00:04.7]} 66...
d2 {[%clk 0:00:03.2]} 67. Kg4 {[%clk 0:00:04.6]} 67... d1=Q+ {[%clk 0:00:02.1]}
68. Kg5 {[%clk 0:00:04.5]} 1-0

[Event "Live Chess"]
[Site "Chess.com"]
[Date "2024.06.02"]
[Round "-"]
[White "TJ-W"]
[Black "upoe610"]
[Result "0-1"]
[WhiteElo "1571"]
[BlackElo "2179"]
[TimeControl "300"]
[EndTime "1:57:00 PDT"]
[Termination "upoe610 won by resignation"]

1. e4 {[%clk 0:04:58.2]} 1... e5 {[%clk 0:04:58.6]} 2. Nf3 {[%clk 0:04:56.4]}
2... Nc6 {[%clk 0:04:57.6]} 3. Bc4 {[%clk 0:04:55.6]} 3... Nf6 {[%clk
0:04:56.5]} 4. Ng5 {[%clk 0:04:53.1]} 4... d5 {[%clk 0:04:55.7]} 5. exd5 {[%clk
0:04:52.1]} 5... Nd4 {[%clk 0:04:55.2]} 6. d6 {[%clk 0:04:33.4]} 6... Qxd6
{[%clk 0:04:53.5]} 7. Nxf7 {[%clk 0:04:14.9]} 7... Qc6 {[%clk 0:04:51.5]} 8. O-O
{[%clk 0:03:51.2]} 8... Qxc4 {[%clk 0:04:49]} 9. Nxh8 {[%clk 0:03:49.1]} 9...
Bc5 {[%clk 0:04:48.1]} 10. d3 {[%clk 0:03:39.8]} 10... Qd5 {[%clk 0:04:43.9]}
11. Be3 {[%clk 0:03:34]} 11... Bg4 {[%clk 0:04:41.9]} 12. f3 {[%clk 0:03:26.9]}
12... Nxf3+ {[%clk 0:04:40.8]} 13. gxf3 {[%clk 0:03:19.9]} 13... Bxe3+ {[%clk
0:04:39.5]} 14. Kg2 {[%clk 0:03:19.3]} 14... O-O-O {[%clk 0:04:27.4]} 15. Nc3
{[%clk 0:03:12.8]} 15... Qc6 {[%clk 0:04:25]} 16. Qe2 {[%clk 0:03:02.4]} 16...
Bd4 {[%clk 0:04:23.1]} 17. Nf7 {[%clk 0:02:57.9]} 17... Nh5 {[%clk 0:04:19.5]}
18. Qe4 {[%clk 0:02:40.6]} 18... Nf4+ {[%clk 0:04:17]} 19. Kh1 {[%clk
0:02:32.9]} 19... Bh3 {[%clk 0:04:15.3]} 20. Rg1 {[%clk 0:02:13.6]} 20... Bxg1
{[%clk 0:04:11.8]} 21. Kxg1 {[%clk 0:02:11.1]} 21... Qxe4 {[%clk 0:04:06.4]} 22.
fxe4 {[%clk 0:02:08.3]} 22... Re8 {[%clk 0:04:05]} 23. Kf2 {[%clk 0:02:03.7]}
23... Bd7 {[%clk 0:03:58.6]} 24. Kf3 {[%clk 0:01:53.3]} 24... Rf8 {[%clk
0:03:53.9]} 25. Nxe5 {[%clk 0:01:42.8]} 25... Ng6+ {[%clk 0:03:52.5]} 26. Ke3
{[%clk 0:01:41.3]} 26... Nxe5 {[%clk 0:03:51.7]} 27. Nd5 {[%clk 0:01:40.7]}
27... c6 {[%clk 0:03:44.4]} 28. Nf4 {[%clk 0:01:34.3]} 28... Ng4+ {[%clk
0:03:42.4]} 29. Kf3 {[%clk 0:01:31]} 29... g5 {[%clk 0:03:41.7]} 0-1

[Event "Live Chess"]
[Site "Chess.com"]
[Date "2024.06.02"]
[Round "-"]
[White "peteopeteo"]
[Black "A3ndrey9"]
[Result "1-0"]
[WhiteElo "1536"]
[BlackElo "1277"]
[TimeControl "300"]
[EndTime "1:57:02 PDT"]
[Termination "peteopeteo won on time"]

1. e4 {[%clk 0:04:59.4]} 1... c6 {[%clk 0:04:59.1]} 2. Nc3 {[%clk 0:04:58.4]}
2... d5 {[%clk 0:04:58.5]} 3. Nf3 {[%clk 0:04:58.3]} 3... d4 {[%clk 0:04:57.2]}
4. Ne2 {[%clk 0:04:57.9]} 4... Bg4 {[%clk 0:04:53.7]} 5. Ng3 {[%clk 0:04:57.3]}
5... Nf6 {[%clk 0:04:45.4]} 6. h3 {[%clk 0:04:56.6]} 6... Bxf3 {[%clk
0:04:43.8]} 7. Qxf3 {[%clk 0:04:55.7]} 7... e6 {[%clk 0:04:42.8]} 8. d3 {[%clk
0:04:53.7]} 8... Bb4+ {[%clk 0:04:38.9]} 9. Bd2 {[%clk 0:04:52.2]} 9... Bxd2+
{[%clk 0:04:37.3]} 10. Kxd2 {[%clk 0:04:52.1]} 10... Qa5+ {[%clk 0:04:35.7]} 11.
c3 {[%clk 0:04:49.9]} 11... dxc3+ {[%clk 0:04:32.3]} 12. bxc3 {[%clk 0:04:49.8]}
12... O-O {[%clk 0:04:27.9]} 13. Be2 {[%clk 0:04:45.7]} 13... Qa3 {[%clk
0:04:22.8]} 14. Rhb1 {[%clk 0:04:33.4]} 14... b5 {[%clk 0:04:18.2]} 15. Rb3
{[%clk 0:04:25.5]} 15... Qd6 {[%clk 0:04:09.4]} 16. Qe3 {[%clk 0:04:12.2]} 16...
Qe7 {[%clk 0:03:50.9]} 17. f4 {[%clk 0:04:05.3]} 17... Nbd7 {[%clk 0:03:48.6]}
18. f5 {[%clk 0:04:04.5]} 18... Nc5 {[%clk 0:03:34.2]} 19. Rb2 {[%clk
0:03:42.8]} 19... Rad8 {[%clk 0:03:20.1]} 20. Rd1 {[%clk 0:03:30.5]} 20... a5
{[%clk 0:03:07.7]} 21. Kc2 {[%clk 0:03:27.6]} 21... Na4 {[%clk 0:02:55.6]} 22.
Rb3 {[%clk 0:03:21.8]} 22... exf5 {[%clk 0:02:42.7]} 23. Nxf5 {[%clk 0:03:20.3]}
23... Qe5 {[%clk 0:02:31.6]} 24. Qg3 {[%clk 0:03:13.8]} 24... Qxg3 {[%clk
0:02:25.2]} 25. Nxg3 {[%clk 0:03:12.5]} 25... Nc5 {[%clk 0:02:24.8]} 26. Rb2
{[%clk 0:03:09.7]} 26... Rfe8 {[%clk 0:02:15.3]} 27. Nf5 {[%clk 0:03:08.3]}
27... Na4 {[%clk 0:01:48.3]} 28. Rb3 {[%clk 0:03:04]} 28... Nc5 {[%clk
0:01:44.6]} 29. Rb2 {[%clk 0:03:02.7]} 29... Na4 {[%clk 0:01:43.4]} 30. Rbb1
{[%clk 0:02:57.1]} 30... Re5 {[%clk 0:01:12.1]} 31. g4 {[%clk 0:02:54.3]} 31...
Rc5 {[%clk 0:01:08.3]} 32. Rb3 {[%clk 0:02:44.6]} 32... b4 {[%clk 0:00:50.4]}
33. c4 {[%clk 0:02:36.5]} 33... Nb6 {[%clk 0:00:45.4]} 34. d4 {[%clk 0:02:35]}
34... Rxc4+ {[%clk 0:00:28.4]} 35. Bxc4 {[%clk 0:02:34.9]} 35... Nxc4 {[%clk
0:00:27.3]} 36. d5 {[%clk 0:02:27]} 36... cxd5 {[%clk 0:00:17.9]} 37. exd5
{[%clk 0:02:26.3]} 37... Nxd5 {[%clk 0:00:12.2]} 38. Rxd5 {[%clk 0:02:25.7]}
38... Ne3+ {[%clk 0:00:03.7]} 39. Nxe3 {[%clk 0:02:24.6]} 39... Rxd5 {[%clk
0:00:02]} 40. Nxd5 {[%clk 0:02:24.5]} 1-0